bitfinex/quotes_ETHUSD_20251012
["timestamp","ask_amount","ask_price","bid_price","bid_amount"]
[1760278305814,0.097,3827.6,3827.2,2.61286793]
[1760278306034,0.097,3827.6,3827.1,2.61292523]
[1760278306233,0.27094721,3827.6,3827.1,2.61292523]
[1760278306439,0.097,3827.5,3827.1,2.61292523]
[1760278306646,0.097,3827.4,3827.1,2.61292523]
[1760278306831,0.1304,3827.1,3826.9,2.61307578]
[1760278307029,0.097,3827.5,3827.2,2.61285058]
[1760278307333,0.097,3827.4,3827.2,2.61285058]
[1760278307850,0.1304,3827.2,3826.7,0.002]
[1760278308053,0.097,3827.3,3826.7,0.002]
[1760278308054,0.1304,3826.9,3826.7,0.002]
[1760278308363,0.40978251,3827.4,3826.7,0.002]
[1760278308522,0.40978251,3827.4,3826.8,2.61314936]
[1760278308717,0.40978251,3827.4,3827.1,2.61292234]
[1760278308918,0.097,3828.1,3827.1,2.61288995]
[1760278309119,0.1304,3827.2,3827.1,2.87417895]
[1760278309319,0.1304,3827.2,3827.1,4.79417895]
[1760278310451,0.6346,3828.2,3827.6,2.61256939]
[1760278310656,0.097,3828.1,3827.6,2.61256939]
[1760278310955,0.097,3828.1,3827.7,2.61252407]
[1760278311354,0.6346,3828.2,3827.7,2.61252407]
[1760278311355,0.097,3828.0,3827.7,2.61252407]
[1760278311555,0.001,3828.1,3827.7,2.61252407]
[1760278311740,0.32576764,3828.1,3827.7,2.61252407]
[1760278311947,0.097,3828.0,3827.7,2.61252407]
[1760278312149,0.097,3827.9,3827.7,2.61252407]
[1760278312351,0.097,3827.8,3827.7,2.61252407]
[1760278312658,0.001,3828.1,3828.0,2.61233019]
[1760278313662,0.098,3828.1,3827.1,1.92]
[1760278313976,0.098,3828.1,3827.4,1.92]
[1760278314128,0.098,3828.1,3827.9,2.6123321]
[1760278314765,0.098,3828.1,3828.0,2.61233019]
[1760278315658,0.001,3828.1,3828.0,2.61233019]
[1760278315861,0.098,3828.1,3827.9,2.61234228]
[1760278316069,0.001,3828.1,3828.0,2.61233019]
[1760278316762,0.098,3828.1,3827.9,2.61237388]
[1760278316951,0.097,3828.0,3827.0,4.5330128]
[1760278317258,0.097,3828.0,3827.8,2.61246585]
[1760278317632,0.6346,3828.1,3827.8,2.61246585]
[1760278317837,0.097,3828.0,3827.8,2.61246585]
[1760278318069,0.097,3827.9,3827.8,2.61246585]
[1760278319370,0.001,3828.1,3828.0,2.61233019]
[1760278319735,0.098,3828.1,3828.0,2.61233019]
[1760278320280,0.098,3828.1,3827.9,2.61237997]
[1760278320485,0.1304,3827.8,3827.7,2.61250226]
[1760278320660,0.098,3828.1,3827.8,2.6124589]
[1760278320851,0.001,3828.1,3828.0,2.61233019]
[1760278321360,0.1304,3828.0,3827.9,2.61238129]
[1760278321590,0.1304,3828.0,3827.3,2.61277411]
[1760278321591,0.001,3828.1,3828.0,2.61233019]
[1760278321992,0.098,3828.1,3828.0,2.61233019]
[1760278322197,0.1304,3828.0,3827.9,2.61237498]
[1760278322378,0.098,3828.1,3827.7,2.61247971]
[1760278322379,0.001,3828.1,3828.0,2.61233019]
[1760278323053,0.098,3828.1,3828.0,2.61233019]
[1760278323454,0.098,3828.1,3827.7,2.61247971]
[1760278323455,0.1304,3828.0,3827.9,2.61237129]
[1760278323654,0.001,3828.1,3828.0,2.61233019]
[1760278324386,0.098,3828.1,3828.0,2.61233019]
[1760278324976,0.1304,3828.0,3827.9,2.6123755]
[1760278325180,0.001,3828.1,3828.0,2.61233019]
[1760278327993,0.001,3828.1,3828.0,5.4979042]
[1760278328298,0.001,3828.6,3828.5,2.61198902]
[1760278328467,0.001,3828.6,3828.5,4.53198902]
[1760278328662,0.001,3828.6,3828.5,5.10548902]
[1760278328863,0.1314,3829.4,3829.3,2.61144334]
[1760278329064,0.001,3829.4,3829.3,4.79258767]
[1760278329280,0.001,3829.4,3829.3,5.23568767]
[1760278331690,0.001,3829.4,3829.3,5.36608767]
[1760278331867,0.001,3829.4,3829.3,19.86608767]
[1760278333972,0.001,3829.4,3828.0,0.96557401]
[1760278334175,0.0992,3829.3,3828.7,2.61183318]
[1760278334398,0.6336,3829.1,3827.7,14.5]
[1760278334599,0.7328,3829.1,3827.9,2.61239844]
[1760278334812,0.7328,3829.1,3828.6,2.61186506]
[1760278335017,0.001,3829.4,3827.8,0.4431]
[1760278335018,0.0992,3829.0,3827.8,0.4431]
[1760278335185,2.6116535,3829.0,3827.7,14.5]
[1760278335511,0.0992,3828.9,3828.4,2.61204117]
[1760278335678,0.37028012,3828.9,3828.4,2.61204117]
[1760278335872,0.0992,3828.8,3828.4,2.61204117]
[1760278336079,0.0992,3828.7,3828.4,2.61204117]
[1760278336272,0.0992,3828.7,3828.5,2.61197629]
[1760278336480,0.0992,3829.1,3828.5,2.61193597]
[1760278336783,0.0992,3829.2,3827.8,2.3631]
[1760278336995,3.71987363,3829.1,3828.4,2.61199857]
[1760278337312,2.61195859,3828.6,3827.2,2.61283217]
[1760278337510,0.0992,3828.5,3827.3,2.6127495]
[1760278337708,0.0992,3828.4,3827.8,2.61240004]
[1760278337911,0.0992,3828.4,3827.3,0.30578495]
[1760278338099,0.7328,3828.3,3826.8,2.61313444]
[1760278338300,0.7328,3828.3,3826.6,0.4348]
[1760278338301,3.34494175,3828.3,3827.6,2.61254566]
[1760278338609,0.0992,3828.2,3827.6,2.61254566]
[1760278338813,3.24574175,3828.3,3827.6,2.61254566]
[1760278339106,0.0992,3828.1,3827.5,2.61267145]
[1760278339320,0.40969595,3828.6,3827.5,0.69606715]
[1760278339530,0.0992,3828.7,3828.3,2.61207093]
[1760278339823,0.0992,3828.7,3827.7,2.61253494]
[1760278339824,0.001,3829.4,3827.7,1.92]
[1760278340002,0.0992,3828.6,3828.1,1.92]
[1760278340201,0.6336,3829.2,3828.4,2.61204948]
[1760278340405,0.0992,3828.9,3828.5,2.61197474]
[1760278341179,0.0992,3828.8,3828.3,2.61206043]
[1760278341385,0.0992,3828.8,3828.5,2.61197006]
[1760278341586,0.0992,3828.8,3827.8,1.92]
[1760278341786,0.0992,3828.8,3828.2,2.612141]
[1760278341985,0.0992,3828.8,3828.4,2.61204657]
[1760278342381,0.0992,3828.7,3827.9,0.45324805]
[1760278342585,0.0992,3828.7,3827.0,2.61300314]
[1760278342586,0.0992,3828.7,3828.1,2.61221195]
[1760278343141,0.0992,3829.0,3828.0,2.6123294]
[1760278343348,2.61238343,3829.4,3828.3,2.61212538]
[1760278343349,0.0992,3828.9,3828.3,2.61212538]
[1760278343531,2.61144573,3829.3,3828.5,2.61192568]
[1760278343532,0.6336,3829.2,3828.5,2.61192568]
[1760278343732,0.6336,3829.2,3827.1,1.922]
[1760278343733,0.0992,3829.1,3827.1,1.922]
[1760278344049,0.1304,3828.2,3828.1,2.6122502]
[1760278344554,0.1002,3829.4,3828.2,2.61219372]
[1760278344708,0.1002,3829.4,3828.8,2.61176839]
[1760278345101,0.1304,3828.8,3828.3,2.61212548]
[1760278345352,0.1304,3828.8,3828.7,2.61185258]
[1760278348250,0.1314,3828.8,3828.7,2.61185258]
[1760278352866,0.001,3828.8,3828.7,4.96665258]
[1760278358467,0.001,3828.8,3828.7,5.09705258]
[1760278362371,0.001,3829.6,3829.5,4.53130695]
[1760278362580,0.001,3829.6,3829.5,4.66170695]
[1760278362870,0.1304,3830.7,3829.7,4.53117058]
[1760278363075,0.1304,3830.7,3829.7,4.66157058]
[1760278363405,0.1,3831.5,3829.7,5.09637058]
[1760278363575,0.1304,3830.9,3829.7,5.65216602]
[1760278364603,0.101,3831.8,3829.7,5.65216602]
[1760278364604,0.001,3831.8,3829.7,5.65216602]
[1760278364903,0.1304,3831.3,3829.7,6.28576602]
[1760278365103,0.1304,3831.7,3829.7,6.28576602]
[1760278367295,0.001,3831.8,3829.7,6.28576602]
[1760278367677,0.001,3831.8,3829.7,6.64483089]
[1760278367883,0.001,3831.8,3829.7,6.28576602]
[1760278370684,0.001,3831.8,3829.7,5.65216602]
[1760278370880,0.2189,3831.4,3829.7,3.60176602]
[1760278371698,0.099,3831.0,3829.7,2.61117058]
[1760278371885,0.6336,3831.1,3829.7,3.05537058]
[1760278372627,0.40938695,3831.2,3829.7,3.05537058]
[1760278372807,0.6336,3831.3,3829.7,4.97537058]
[1760278373027,0.2189,3831.4,3829.7,4.97537058]
[1760278373203,0.099,3831.3,3829.7,4.97537058]
[1760278373402,0.099,3831.3,3829.7,3.05537058]
[1760278373999,0.6346,3831.8,3829.7,3.05537058]
[1760278374601,0.2189,3831.5,3829.7,3.05537058]
[1760278375237,0.099,3831.4,3829.7,3.05537058]
[1760278377743,0.099,3831.4,3829.7,19.47537058]
[1760278377955,0.2189,3831.5,3829.7,19.47537058]
[1760278378562,0.001,3831.8,3829.7,19.47537058]
[1760278379370,0.2189,3831.5,3829.7,19.47537058]
[1760278379671,0.3179,3831.5,3829.7,19.47537058]
[1760278380861,0.1304,3831.0,3829.7,19.60577058]
[1760278381079,0.6336,3831.0,3829.7,17.24157058]
[1760278381361,0.1304,3830.3,3829.7,19.16157058]
[1760278381662,0.1304,3830.3,3829.7,17.24157058]
[1760278381826,0.1304,3830.3,3829.7,19.16157058]
[1760278383544,0.1304,3830.3,3829.7,16.5504]
[1760278383748,0.1304,3830.3,3829.6,0.002]
[1760278383749,0.1304,3829.7,3829.6,0.002]
[1760278384196,0.2296,3829.7,3829.6,0.002]
[1760278384552,0.1304,3829.7,3829.6,2.61323877]
[1760278385070,0.001,3830.2,3829.7,2.61117058]
[1760278385270,0.1314,3829.8,3829.7,2.61117058]
[1760278385599,0.001,3829.8,3829.7,2.61117058]
[1760278386883,0.1,3829.8,3829.6,0.002]
[1760278387090,0.6346,3829.8,3829.6,0.002]
[1760278387282,0.099,3829.7,3829.6,0.002]
[1760278388674,0.7326,3829.7,3829.6,0.002]
[1760278389462,1.07850796,3829.7,3829.6,0.002]
[1760278389969,3.34377058,3829.7,3829.6,0.002]
[1760278390482,5.26377058,3829.7,3829.6,0.002]
[1760278392400,0.001,3829.8,3829.6,0.002]
[1760278392601,0.001,3829.8,3829.7,2.61117058]
[1760278394965,0.001,3829.8,3829.7,3.05537058]
[1760278396781,0.001,3829.8,3829.7,3.18577058]
[1760278398007,0.001,3829.8,3829.7,17.68577058]
[1760278398302,0.001,3829.8,3829.7,19.60577058]
[1760278398503,1e-08,3830.6,3829.7,19.60577058]
[1760278398803,1e-08,3830.6,3830.5,2.82562524]
[1760278399166,1e-08,3830.6,3830.5,17.76402524]
[1760278399370,0.31590001,3830.6,3829.5,0.4384]
[1760278399617,0.31590001,3830.6,3830.4,2.61068054]
[1760278399796,1e-08,3830.6,3830.5,2.61062524]
[1760278399967,1e-08,3830.6,3829.8,14.5]
[1760278400167,1e-08,3830.6,3830.4,2.61064626]
[1760278400370,1e-08,3830.6,3830.4,2.61063183]
[1760278400572,0.3181,3830.5,3830.4,2.61063183]
[1760278401013,1e-08,3830.6,3830.5,2.61062524]
[1760278402881,0.10020001,3830.6,3829.8,14.5]
[1760278403087,0.1002,3830.5,3829.6,0.002]
[1760278403404,0.7478,3829.7,3829.6,0.002]
[1760278403574,1.01458,3829.7,3829.6,0.002]
[1760278404086,5.64605058,3829.7,3829.6,0.002]
[1760278405196,6.05560194,3829.7,3829.6,0.002]
[1760278406732,3.44443136,3829.7,3829.6,0.002]
[1760278406908,3.17765136,3829.7,3829.6,0.002]
[1760278407609,5.78882194,3829.7,3829.6,0.002]
[1760278407810,3.17765136,3829.7,3829.6,0.002]
[1760278408620,2.5536,3829.7,3829.6,0.002]
[1760278408821,1.92,3829.7,3829.6,2.61323877]
[1760278409315,1.92,3829.7,3829.6,0.002]
[1760278409887,1.92,3829.7,3829.6,2.61323877]
[1760278414620,0.6336,3830.3,3829.8,2.61107792]
[1760278414818,3.24415873,3830.6,3829.8,2.61107792]
[1760278415017,3.24415873,3830.6,3829.7,2.61115958]
[1760278415018,0.1304,3829.8,3829.7,2.61115958]
[1760278415320,0.6336,3830.1,3829.7,2.61115958]
[1760278415524,0.6336,3829.9,3829.7,2.61115958]
[1760278416126,0.6336,3829.9,3829.6,0.002]
[1760278416127,5.16477058,3829.7,3829.6,0.002]
[1760278416296,2.5536,3829.7,3829.6,0.002]
[1760278416497,5.54227058,3829.7,3829.6,0.002]
[1760278416907,2.9311,3829.7,3829.6,0.002]
[1760278418015,2.61045078,3830.8,3829.6,0.002]
[1760278418016,2.609869,3831.7,3829.6,0.002]
[1760278418220,1.92,3830.4,3829.7,2.61111994]
[1760278418423,0.1009,3830.5,3830.1,2.61088763]
[1760278418715,0.1009,3830.4,3829.9,2.61102932]
[1760278418914,0.6336,3830.2,3829.9,2.61102932]
[1760278419095,0.6336,3830.4,3830.0,2.61094871]
[1760278419294,0.6336,3830.2,3829.9,2.61101196]
[1760278419498,0.1009,3830.1,3829.8,2.61108721]
[1760278419698,0.1009,3830.0,3829.8,2.61108721]
[1760278420196,0.1136,3829.9,3829.6,0.002]
[1760278420393,0.6336,3829.8,3829.6,0.002]
[1760278420597,0.7346,3829.8,3829.6,0.002]
[1760278420795,0.6336,3829.8,3829.7,2.61117058]
[1760278421038,2.6546,3830.3,3829.7,2.61117058]
[1760278421331,0.6336,3830.1,3829.8,2.61104614]
[1760278421829,0.7347,3830.1,3829.9,2.61102471]
[1760278422426,0.63360001,3830.6,3829.6,0.002]
[1760278422623,0.7347,3830.4,3829.9,2.61097885]
[1760278422823,0.1011,3830.3,3829.9,2.61097885]
[1760278423023,0.6336,3830.2,3829.9,2.61097885]
[1760278423229,0.1011,3830.2,3829.9,2.61097885]
[1760278423535,0.1011,3830.2,3830.0,2.61096468]
[1760278424538,0.1011,3830.2,3830.1,2.61089788]
[1760278424903,0.1011,3830.2,3829.9,2.6109679]
[1760278425114,2.5536,3830.4,3829.8,2.61110212]
[1760278425318,0.1011,3830.1,3829.9,2.61103094]
[1760278425726,0.7347,3830.1,3830.0,2.61096605]
[1760278426126,0.1304,3830.0,3829.9,2.61100965]
[1760278426337,0.7347,3830.1,3829.9,2.61100965]
[1760278426516,0.7347,3830.1,3830.0,2.61096605]
[1760278426914,0.7347,3830.1,3829.6,0.002]
[1760278426915,0.764,3830.0,3829.6,0.002]
[1760278427139,0.8773,3829.7,3829.6,0.002]
[1760278427548,3.58967058,3829.7,3829.6,0.002]
[1760278428415,0.9785,3829.7,3829.6,0.002]
[1760278428719,0.6336,3829.7,3829.6,0.002]
[1760278429108,0.847,3829.7,3829.6,0.002]
[1760278429527,0.6336,3829.7,3829.6,0.002]
[1760278429741,0.6336,3829.7,3829.6,2.61323877]
[1760278429948,0.6336,3829.7,3829.6,0.002]
[1760278430153,0.7326,3829.7,3829.6,0.002]
[1760278430351,0.7326,3829.7,3829.6,2.61323877]
[1760278430716,0.7326,3829.7,3829.6,0.002]
[1760278431246,0.7326,3829.7,3829.6,2.61323877]
[1760278431643,0.6336,3829.7,3829.6,2.61323877]
[1760278431807,0.001,3831.0,3830.4,2.61069338]
[1760278432140,0.1,3831.0,3830.5,2.61062524]
[1760278432610,0.6336,3830.9,3830.5,2.61062524]
[1760278432809,0.6336,3830.9,3829.8,2.6111024]
[1760278432810,0.6336,3830.9,3830.4,2.61067322]
[1760278433096,0.099,3830.8,3830.5,2.61062524]
[1760278433606,0.001,3831.0,3830.5,2.61062524]
[1760278435755,0.001,3831.0,3829.8,0.1304]
[1760278435986,0.6336,3830.9,3829.8,0.1304]
[1760278436206,0.6336,3830.9,3830.5,2.61062524]
[1760278436386,0.6346,3831.0,3830.5,2.61062524]
[1760278437893,0.001,3831.0,3830.5,2.61062524]
[1760278438833,0.1,3831.0,3830.5,2.61062524]
[1760278439205,0.1304,3830.5,3830.4,2.61068257]
[1760278439834,0.001,3831.0,3830.5,2.61062524]
[1760278440018,0.1314,3831.0,3830.5,3.04502524]
[1760278440741,0.001,3831.0,3830.5,3.04502524]
[1760278441032,0.001,3831.0,3830.5,5.09542524]
[1760278441326,0.001,3831.0,3830.5,19.59542524]
[1760278441723,0.001,3831.0,3830.5,20.22902524]
[1760278441892,0.2192,3833.3,3832.9,2.60895241]
[1760278442094,0.3205,3833.3,3832.8,2.60901145]
[1760278442416,0.3205,3833.3,3832.9,2.60898146]
[1760278442790,0.3205,3833.3,3832.8,2.60905772]
[1760278443031,0.1013,3833.2,3832.2,0.4344]
[1760278443215,0.48491504,3833.1,3832.7,2.60907693]
[1760278443528,0.48491504,3833.1,3832.8,2.60905172]
[1760278443724,0.1013,3833.2,3832.8,2.60905172]
[1760278443927,0.6336,3833.2,3832.9,2.60897828]
[1760278444129,0.1013,3833.6,3833.0,2.60886691]
[1760278444348,0.1013,3833.6,3832.5,14.9344]
[1760278444349,2.71110071,3833.5,3832.5,17.10925984]
[1760278444560,2.82639083,3833.8,3832.5,17.10925984]
[1760278444561,1.00721007,3833.4,3832.5,14.5]
[1760278444720,0.1025,3833.3,3831.7,0.4344]
[1760278444921,0.1025,3833.3,3832.4,2.60927542]
[1760278444922,2.60885767,3833.1,3832.4,2.60927542]
[1760278445133,0.6336,3833.2,3832.1,14.5]
[1760278445319,0.6336,3833.2,3832.5,2.60921711]
[1760278445518,3.24244442,3833.2,3832.5,2.60924557]
[1760278445747,0.6336,3833.0,3832.6,2.60914152]
[1760278446120,0.40917874,3833.4,3833.0,2.60887513]
[1760278446324,0.51167874,3833.4,3832.9,2.60897463]
[1760278446628,0.1025,3833.3,3832.9,2.60897463]
[1760278446829,0.1025,3833.3,3832.2,0.4344]
[1760278447027,0.40917874,3833.4,3833.0,2.60890264]
[1760278447337,0.40917874,3833.4,3833.0,2.60891298]
[1760278447738,0.1025,3833.3,3832.8,2.60902779]
[1760278448343,0.1025,3833.3,3832.7,2.60906746]
[1760278448543,0.31203426,3833.2,3832.7,2.60909182]
[1760278448744,0.1025,3833.1,3832.7,2.60909182]
[1760278449065,0.1025,3833.1,3832.1,17.54392376]
[1760278449066,0.31203426,3833.2,3832.1,14.9344]
[1760278449227,0.6336,3833.3,3832.6,2.60917298]
[1760278449566,0.6336,3833.3,3832.8,2.60903473]
[1760278449762,0.6336,3833.3,3832.4,2.60932098]
[1760278449763,3.34482659,3833.3,3832.4,2.60932098]
[1760278450058,0.7361,3833.3,3832.7,2.60911533]
[1760278450266,0.7361,3833.3,3832.9,2.60898887]
[1760278450267,0.6336,3833.3,3832.9,2.60898887]
[1760278450466,0.29627787,3833.2,3832.4,3.04370512]
[1760278450767,0.40917874,3833.4,3832.1,14.5]
[1760278450768,0.40917874,3833.4,3832.5,0.4344]
[1760278450940,0.1025,3834.1,3832.5,0.4344]
[1760278450941,0.1025,3834.1,3832.6,2.6091948]
[1760278451136,0.1025,3834.1,3833.3,2.60865981]
[1760278451464,2.71071969,3834.1,3833.4,2.60862877]
[1760278451760,0.53187587,3834.0,3833.4,2.60862877]
[1760278451964,0.6336,3833.9,3833.4,2.60862877]
[1760278452972,0.1304,3833.4,3833.3,2.60870761]
[1760278453483,0.234,3833.4,3832.9,2.60892876]
[1760278453638,0.1036,3833.4,3833.0,2.60890908]
[1760278453974,0.1304,3833.2,3833.0,2.60890908]
[1760278454683,0.1036,3833.1,3832.2,0.1304]
[1760278454837,0.1036,3833.1,3832.7,2.60908315]
[1760278455036,0.1036,3833.1,3832.2,0.1304]
[1760278455037,0.1304,3832.8,3832.2,0.1304]
[1760278455262,0.1304,3832.8,3832.6,2.609191]
[1760278459474,0.1304,3832.8,3832.6,2.60918868]
[1760278460178,0.1304,3832.8,3832.7,2.60912672]
[1760278461385,0.1304,3832.8,3832.4,2.60931415]
[1760278461589,0.40915468,3833.7,3831.7,0.4297]
[1760278461590,0.1036,3832.7,3831.7,0.4297]
[1760278461904,0.2144,3831.8,3830.7,0.2233]
[1760278462193,0.1304,3831.4,3831.2,2.61013584]
[1760278462665,0.6336,3831.3,3830.3,0.2233]
[1760278462846,0.1304,3830.8,3830.3,2.61073232]
[1760278463042,0.1304,3830.8,3830.2,2.61082137]
[1760278463248,0.1304,3830.4,3829.8,3.0408024]
[1760278463476,0.1304,3830.4,3830.3,2.61076155]
[1760278464879,0.2351,3830.4,3829.7,0.1304]
[1760278465088,0.40939772,3831.4,3829.7,0.1304]
[1760278465089,0.1047,3831.3,3829.7,0.4297]
[1760278465288,0.1304,3830.3,3830.2,2.61082972]
[1760278465471,0.1304,3830.3,3829.6,0.1324]
[1760278465677,2.61039854,3830.9,3829.7,2.61117058]
[1760278465678,0.1304,3830.0,3829.7,2.61117058]
[1760278465853,0.1304,3830.0,3829.9,2.61103423]
[1760278466648,2.61028567,3831.0,3829.9,2.61103423]
[1760278466649,0.1047,3831.1,3829.9,0.4297]
[1760278466957,0.1047,3831.5,3829.9,0.74702706]
[1760278467155,0.1047,3831.5,3830.8,2.61035786]
[1760278467357,0.1304,3831.1,3831.0,2.61028452]
[1760278467685,0.1058,3831.5,3830.9,2.61033337]
[1760278467869,0.1058,3831.5,3831.0,2.61027957]
[1760278468073,0.1058,3831.4,3830.2,2.61082522]
[1760278468267,0.1058,3831.4,3830.9,2.61034124]
[1760278468469,3.24336386,3831.8,3831.1,2.61021586]
[1760278468648,0.6336,3831.6,3831.1,2.61021586]
[1760278468847,0.6336,3831.6,3830.4,2.6106934]
[1760278468848,0.1058,3831.5,3831.0,2.61027172]
[1760278469369,0.1058,3831.4,3831.0,2.61027172]
[1760278469570,0.1058,3831.4,3831.1,2.61020898]
[1760278469753,0.1058,3831.4,3831.2,1.92]
[1760278470162,0.1058,3831.4,3831.0,2.61026224]
[1760278470374,0.1058,3831.4,3831.1,2.61019721]
[1760278472057,0.6336,3831.7,3830.6,0.4297]
[1760278472260,0.6336,3831.7,3831.2,2.61008424]
[1760278472457,0.1058,3831.6,3831.2,2.61008424]
[1760278472860,0.001,3831.8,3830.6,3.04019678]
[1760278473061,0.001,3831.8,3831.6,2.60981538]
[1760278473389,0.001,3831.8,3831.7,2.60980765]
[1760278477298,0.001,3831.8,3830.7,0.4297]
[1760278477601,0.1304,3831.6,3831.5,2.60987958]
[1760278478659,0.1304,3831.6,3831.4,2.60999032]
[1760278478897,0.001,3831.8,3831.5,2.60993738]
[1760278478898,0.6346,3831.8,3831.5,2.60993738]
[1760278479264,0.1304,3831.5,3831.4,2.60998998]
[1760278479488,0.1304,3831.2,3831.0,2.61024269]
[1760278479793,0.6336,3830.9,3830.1,0.002]
[1760278479967,0.1304,3830.8,3830.1,0.002]
[1760278480168,0.1304,3830.6,3830.4,2.61064516]
[1760278480374,0.1304,3830.6,3830.1,0.002]
[1760278480576,0.6336,3831.4,3830.4,2.61062588]
[1760278480577,0.1002,3830.8,3830.4,2.61062588]
[1760278480785,0.1002,3830.7,3830.5,2.61059286]
[1760278480971,0.1304,3830.4,3830.2,2.61082972]
[1760278481177,0.1304,3830.4,3830.3,2.61076155]
[1760278481791,2.6100187,3831.4,3830.3,2.61076155]
[1760278481792,0.219,3831.9,3831.2,2.6101013]
[1760278482001,0.219,3831.9,3831.4,2.60995377]
[1760278482172,0.219,3831.9,3831.5,2.60994388]
[1760278482173,0.1304,3831.6,3831.5,2.60994388]
[1760278482372,0.1304,3831.6,3831.4,2.60996296]
[1760278482782,0.1304,3831.6,3831.5,2.60994388]
[1760278482996,0.3192,3831.9,3830.6,0.4297]
[1760278482997,0.6346,3831.8,3830.6,0.4297]
[1760278483202,0.6346,3831.8,3831.3,2.61002906]
[1760278483407,0.1304,3831.3,3830.7,2.74086075]
[1760278483573,0.6336,3831.6,3831.0,2.6102735]
[1760278483771,0.1304,3831.0,3830.3,0.1304]
[1760278484080,0.1002,3830.9,3830.2,2.61082972]
[1760278484405,0.1002,3830.9,3830.3,2.61070638]
[1760278484575,0.1002,3830.9,3830.1,2.61287419]
[1760278484576,0.1002,3830.9,3830.4,2.61065888]
[1760278484898,0.1002,3831.3,3830.7,2.61043579]
[1760278485105,0.6336,3831.1,3830.7,2.61043579]
[1760278485271,0.1002,3831.0,3830.7,2.61043579]
[1760278485675,0.6336,3831.1,3830.8,2.6104109]
[1760278486184,0.6336,3831.1,3830.9,2.61033605]
[1760278486501,0.6336,3831.1,3830.8,2.61040827]
[1760278486670,0.7338,3831.1,3830.8,2.61040827]
[1760278487300,0.6336,3831.1,3830.1,0.002]
[1760278487480,0.1002,3831.0,3830.7,2.61047445]
[1760278488169,0.1002,3830.9,3830.7,2.61047445]
[1760278489003,0.99451933,3831.1,3830.8,2.61042079]
[1760278489301,1.09471933,3831.1,3830.8,2.61042079]
[1760278489524,0.99451933,3831.1,3830.8,2.61042079]
[1760278489691,0.1002,3831.0,3830.8,2.61042079]
[1760278489893,0.99451933,3831.1,3830.1,0.002]
[1760278490111,0.1002,3832.4,3830.3,0.2368]
[1760278490313,0.001,3831.8,3831.6,2.60987155]
[1760278490593,0.001,3831.8,3831.7,2.60980765]
[1760278491014,0.001,3831.8,3831.7,4.52980765]
[1760278491708,0.001,3831.8,3831.7,2.60980765]
[1760278493392,0.001,3831.8,3830.8,0.002]
[1760278493393,0.7336,3831.8,3830.8,0.002]
[1760278493730,0.7336,3831.8,3831.5,2.60994361]
[1760278493731,0.6346,3831.8,3831.5,2.60994361]
[1760278493924,0.6346,3831.8,3831.4,2.610012]
[1760278493925,0.1304,3831.5,3831.4,2.610012]
[1760278498042,0.001,3831.8,3831.7,2.60980765]
[1760278498238,0.1314,3831.8,3831.7,2.60980765]
[1760278500521,0.1314,3831.8,3830.6,0.4658]
[1760278500832,0.001,3831.8,3831.5,2.60989026]
[1760278501031,0.001,3831.8,3831.7,2.60980765]
[1760278501452,0.1304,3831.7,3831.3,2.61006407]
[1760278501635,0.001,3831.8,3830.7,0.1304]
[1760278501835,0.1304,3831.6,3831.4,2.610012]
[1760278502134,0.1304,3831.6,3831.5,3.33674508]
[1760278502314,0.001,3831.8,3831.7,2.60980765]
[1760278505669,0.001,3831.8,3831.7,3.07560765]
[1760278505949,0.1,3833.7,3831.7,0.5962]
[1760278506134,0.2178,3833.9,3833.5,2.60852527]
[1760278506348,0.1304,3833.4,3833.3,2.60871833]
[1760278506849,0.1304,3833.4,3833.3,3.15075783]
[1760278507051,0.001,3833.9,3833.8,2.60837811]
[1760278507441,0.001,3833.9,3833.8,3.07417811]
[1760278507959,0.001,3833.9,3833.8,4.99417811]
[1760278508156,0.001,3833.9,3833.8,5.12457811]
[1760278508316,0.001,3833.9,3833.8,5.38703811]
[1760278508516,0.001,3833.9,3833.8,19.88703811]
[1760278513239,0.001,3833.9,3833.8,19.62457811]
[1760278513639,0.001,3833.9,3831.4,1.92]
[1760278513841,0.001,3833.9,3833.8,2.60837811]
[1760278514357,0.001,3833.9,3833.8,3.07417811]
[1760278516124,2.6083926,3833.8,3832.5,2.60922698]
[1760278516456,2.6083926,3833.8,3833.2,2.60876804]
[1760278516457,1.28921711,3833.8,3833.2,2.60876804]
[1760278516657,0.7359,3833.8,3833.2,2.60876804]
[1760278516958,0.6336,3833.8,3833.1,2.60885445]
[1760278517158,0.6336,3833.8,3832.9,2.60899058]
[1760278517457,0.6336,3833.8,3832.8,0.4658]
[1760278517458,0.98956044,3833.8,3832.8,0.4658]
[1760278517624,0.98956044,3833.8,3832.9,2.60899058]
[1760278517825,0.98956044,3833.8,3833.1,2.60883366]
[1760278518171,0.98956044,3833.8,3832.8,0.4658]
[1760278518172,0.98956044,3833.8,3833.2,2.60878305]
[1760278518372,0.98956044,3833.8,3833.3,2.60871238]
[1760278518568,0.49386202,3833.7,3833.0,2.60890398]
[1760278518866,0.49386202,3833.7,3833.3,2.60867154]
[1760278519055,0.39156202,3833.7,3833.4,2.60860083]
[1760278519232,0.6336,3833.8,3833.5,2.60857018]
[1760278519654,0.6336,3833.8,3833.4,2.60863563]
[1760278519855,0.7359,3833.8,3833.4,2.60863563]
[1760278520963,0.001,3833.9,3833.6,1.92]
[1760278521130,0.001,3833.9,3833.1,0.4533]
[1760278521463,0.001,3833.9,3833.6,2.60846982]
[1760278521825,0.3157,3833.9,3833.6,2.60846982]
[1760278522270,0.001,3833.9,3832.8,1.92]
[1760278522436,0.001,3833.9,3833.8,2.60837811]
[1760278523051,0.001,3833.9,3833.8,3.06167811]
[1760278523784,0.001,3833.9,3833.8,19.48167811]
[1760278526077,0.001,3833.9,3833.8,19.61207811]
[1760278531565,0.001,3833.9,3833.8,14.6304]
[1760278531868,0.001,3833.9,3833.8,17.71347811]